[Event "Lliga Catalana DH 2023"]
[Site "Catalonia"]
[Date "2023.01.24"]
[Round "2.10"]
[White "Terry Cuellar, Luis Antonio"]
[Black "Colls Gelaberto, Emili"]
[Result "1-0"]
[ECO "B07"]
[WhiteElo "2110"]
[BlackElo "2074"]
[Annotator "TA"]
[PlyCount "56"]
[EventDate "2023.01.24"]
[EventType "team-tourn"]
[EventCountry "ESP"]
[SourceTitle "playchess.com"]
[Source "ChessBase"]
[SourceQuality "1"]
[TimeControl "40/5400+30:1800+30"]

{[%evp 12,55,16,33,41,0,57,37,121,108,162,54,118,87,142,144,135,132,136,65,78,66,103,107,393,393,378,217,427,434,885,1038,1044,1003,940,720,2967,2931,2683,2642,29974,29978,4067,2989,29980,2795]} 1. e4 {[%emt 0:01:01]} c6 {[%emt 0:00:08]} 2. Ne2 {[%emt 0:00:28]} e5 {[%emt 0:03:25]} 3. d4 {[%emt 0:01:14]} d6 {[%emt 0:01:53]} 4. Nbc3 {[%emt 0:01:25]} Nf6 {[%emt 0:01:46]} 5. f3 {[%emt 0:04:20]} Be7 {[%emt 0:03:03]} 6. Be3 {[%emt 0:02:23]} Nbd7 {[%emt 0:02:03]} 7. Qd2 {[%emt 0:00:55]} Nb6 {[%emt 0:02:31] B07: Pirc Defence: Miscellaneous Systems.} 8. b3 {[%emt 0:04:06] Prevents Nc4.} Qc7 {[%emt 0:03:56] [#]} (8... exd4 $11 9. Bxd4 (9. Qxd4 d5 $15) 9... O-O) 9. a4 $146 {[%emt 0:01:58]} ({Predecessor:} 9. g4 Be6 10. a4 Rd8 11. a5 Nc8 12. d5 Bd7 13. Ng3 cxd5 14. exd5 h6 15. Nb5 {0-1 Schubert,M (1976)-Wiege,A (2089) Hannover Ihme Cup 2014 (2)}) 9... a5 {[%emt 0:01:55]} (9... O-O $14) 10. g4 $16 {[%emt 0:01:24]} g6 {[%emt 0:10:24]} (10... Be6 $16) 11. Bh6 {[%emt 0:07:55]} (11. O-O-O $18) 11... Bf8 {[%emt 0:06:50]} (11... Be6 $1 $14) 12. h4 {[%emt 0:02:03]} exd4 {[%emt 0:08:41]} ({Better is} 12... Bxh6 13. Qxh6 Be6) 13. Bxf8 {[%emt 0:02:59]} ({Don't take} 13. Qxd4 Bxh6 14. g5 (14. Qxf6 O-O $15) 14... Bf8 $14) 13... Rxf8 {[%emt 0:00:38]} 14. Qxd4 {[%emt 0:00:33]} Nfd7 {[%emt 0:00:54]} 15. f4 {[%emt 0:01:18] Repels Ne5. White is more active.} ({White should play} 15. Bg2 $16) 15... Nc5 $14 {[%emt 0:06:11]} 16. Bh3 {[%emt 0:01:35]} Bd7 {[%emt 0:03:13]} 17. O-O-O {[%emt 0:00:50]} Nc8 $2 {[%emt 0:02:50][%mdl 8192] A mistake that costs the game.} (17... O-O-O $16) 18. e5 $18 {[%emt 0:06:30]} Ne6 {[%emt 0:01:40]} 19. Qe3 {[%emt 0:04:00]} (19. exd6 $142 Nxd4 20. dxc7 Nxe2+ 21. Nxe2) 19... dxe5 $2 {[%emt 0:01:53]} (19... Qb6 20. Qxb6 Nxb6) 20. f5 {[%emt 0:03:49] [#] Ne4 is the strong threat.} ({Not} 20. fxe5 Nb6 $16) ({Weaker is} 20. Qxe5 Qxe5 21. fxe5 Nc5 $14) 20... Nd8 {[%emt 0:02:27]} (20... Nd6 $142 21. fxe6 Bxe6) 21. Ne4 {[%emt 0:01:55] Hoping for Nf6+.} f6 {[%emt 0:01:12]} 22. fxg6 {[%emt 0:00:54]} hxg6 {[%emt 0:00:24]} 23. Qh6 {[%emt 0:00:49]} Qb6 {[%emt 0:03:46]} 24. Qxg6+ {[%emt 0:00:35]} Ke7 {[%emt 0:00:18]} 25. g5 {[%emt 0:10:18][%csl Gh3][%cal Rd1d7] [#]} f5 {[%emt 0:05:08]} 26. Qg7+ {[%emt 0:04:55]} Rf7 {[%emt 0:02:25]} 27. Qxe5+ {[%emt 0:00:12]} Be6 {[%emt 0:00:42]} 28. Nc5 {[%emt 0:00:42]} (28. Nf4 $142 Qe3+ {[%mdl 64] Pin} 29. Kb1 Qxf4 30. Qxf4 Bd5 {[%mdl 64] Pin} 31. Qe5+ Ne6 32. Bxf5 Rxf5 33. Qxf5) 28... Qb4 {[%emt 0:02:45] Weighted Error Value: White=0.27 (precise) /Black=1.39} 1-0

[Event "Lliga Catalana DH 2023"]
[Site "Catalonia"]
[Date "2023.02.04"]
[Round "3.1"]
[White "Aroshidze, Levan"]
[Black "Movsziszian, Karen"]
[Result "1-0"]
[ECO "C60"]
[WhiteElo "2535"]
[BlackElo "2483"]
[Annotator "TA"]
[PlyCount "90"]
[EventDate "2023.01.24"]
[EventType "team-tourn"]
[EventCountry "ESP"]
[SourceTitle "playchess.com"]
[Source "ChessBase"]
[SourceQuality "1"]
[TimeControl "40/5400+30:1800+30"]

{[%evp 14,90,29,27,27,42,54,44,54,45,49,40,48,36,41,33,30,0,7,0,0,0,0,0,0,0,0,0,37,24,25,17,47,12,20,0,16,17,25,12,14,18,64,35,59,34,53,0,129,118,162,141,144,137,138,121,123,131,279,275,292,248,278,124,124,124,124,121,317,171,81,0,8165,8577,6287,4815,1477,1377,12843]} 1. e4 {[%emt 0:00:02]} e5 {[%emt 0:00:14]} 2. Nf3 {[%emt 0:00:08]} Nc6 {[%emt 0:00:15]} 3. Bb5 {[%emt 0:00:14][%cal Bf1b5,Bb5a4,Ba4c2,Bc2b3][%mdl 32]} a6 {[%emt 0:00:06]} 4. Ba4 {[%emt 0:00:08]} Nge7 {[%emt 0:00:07]} 5. c3 {[%emt 0:01:48]} g6 {[%emt 0:00:14]} 6. O-O {[%emt 0:00:31]} Bg7 {[%emt 0:00:14]} 7. d4 {[%emt 0:00:27]} exd4 {[%emt 0:01:05]} 8. cxd4 {[%emt 0:00:08]} b5 {[%emt 0:00:00] C60: Ruy Lopez: Unusual Black 3rd moves and 3...g6.} 9. Bc2 {[%emt 0:00:21]} d5 {[%emt 0:02:16]} 10. exd5 {[%emt 0:02:33]} Nb4 {[%emt 0:00:18] White is slightly better.} 11. Bb3 {[%emt 0:00:08]} Nbxd5 {[%emt 0:03:46]} 12. Bg5 {[%emt 0:01:46] Hoping for Re1.} Qd6 {[%emt 0:06:55]} 13. Nbd2 {[%emt 0:08:34]} O-O {[%emt 0:01:19]} 14. Ne4 {[%emt 0:02:44]} Qb6 {[%emt 0:00:13]} 15. Re1 {[%emt 0:12:42] [#] White wants to play Nc5.} (15. Nc5 $5) 15... h6 $146 {[%emt 0:20:43]} ({Predecessor:} 15... c6 16. Qd2 Nf5 17. Nc5 h6 18. Be3 Nfxe3 19. fxe3 Bg4 20. Qf2 Rad8 21. Rad1 Rfe8 {1-0 Narayanan,S (2464)-Derakhshani,B (2079) Barcelona Sant Marti op-A 17th 2015 (1)}) 16. Bxe7 {[%emt 0:14:30]} Nxe7 {[%emt 0:00:07]} 17. Ne5 {[%emt 0:01:07] Against Bg4} Be6 {[%emt 0:27:26]} 18. Nc5 {[%emt 0:04:53] A dynamic duo of knights.} Bxb3 {[%emt 0:01:21]} 19. Qxb3 {[%emt 0:00:05]} Qd6 {[%emt 0:04:11]} 20. Rad1 {[%emt 0:19:58]} Bxe5 {[%emt 0:00:56]} (20... Nf5 $5 {[%cal Rf5d4]}) 21. Rxe5 {[%emt 0:00:02]} Nf5 {[%emt 0:00:29]} 22. Qc3 $36 {[%emt 0:04:28][%mdl 2048] Black is under pressure.} Rae8 {[%emt 0:09:30] [#] ...Rxe5 would be deadly.} 23. Ne4 {[%emt 0:02:16]} (23. Rde1 $5 {[%cal Re5e8]} Qd8 24. Kf1 $14 (24. Nxa6 Nxd4 25. Nc5 Rxe5 $11)) 23... Qb6 {[%emt 0:01:24][%cal Of5d4]} 24. Nc5 {[%emt 0:08:25]} Rd8 {[%emt 0:03:00]} 25. b4 {[%emt 0:02:37]} Qf6 {[%emt 0:00:48] White must now prevent ...Qxe5.} 26. d5 {[%emt 0:04:13]} Nd6 {[%emt 0:01:20]} 27. Re3 {[%emt 0:00:26]} (27. Nxa6 $2 {too greedy.} Nc4 28. Nxc7 Nxe5 $19) 27... Qf5 {[%emt 0:07:56]} (27... Qxc3 $11 28. Rxc3 Ra8) 28. Nxa6 {[%emt 0:01:53] White is much more active.} Ra8 {[%emt 0:01:12]} 29. Rf3 {[%emt 0:01:59]} (29. Qc6 $5 {[%cal Ra2a4]}) 29... Qc8 {[%emt 0:01:45]} 30. Nxc7 {[%emt 0:03:55]} (30. Nc5 $1 $14) 30... Rxa2 {[%emt 0:00:07]} (30... Ra7 $11 {keeps the balance.} 31. Rc1 Qd7) 31. Qc6 $16 {[%emt 0:00:37][%csl LRb5,LRd6]} Rd8 {[%emt 0:04:10]} 32. Nxb5 {[%emt 0:00:11]} Nxb5 {[%emt 0:00:09]} 33. Qxb5 {[%emt 0:00:06]} Qc2 {[%emt 0:00:05]} 34. Qd3 {[%emt 0:01:20]} Qb2 {[%emt 0:00:02]} 35. h4 {[%emt 0:01:17][%cal Oh4h5]} h5 {[%emt 0:00:22]} (35... Ra1 $16) 36. Rf4 $18 {[%emt 0:00:19]} Rd6 {[%emt 0:00:55]} 37. Qc4 {[%emt 0:00:54]} Ra1 {[%emt 0:00:42]} 38. Qf1 {[%emt 0:01:02]} (38. Rxa1 $18 {and the rest is easy. White threatens Ra8+ and mate.} Qxa1+ 39. Kh2) 38... Rxd1 $16 {[%emt 0:00:27]} 39. Qxd1 {[%emt 0:00:02] aiming for Qe1.} Rxd5 {[%emt 0:00:06][%mdl 4160] [#] Endgame Deflection. KQR-KQR} 40. Qf3 {[%emt 0:00:54][%cal Of4f7] And now Rxf7! would win.} Rd4 $2 {[%emt 0:01:51]} (40... Rd7 $16 {was worth a try.} 41. g3 Qe5) 41. Rxd4 {[%emt 0:30:26]} (41. Rxf7 {is a self mate.} Qc1+ 42. Kh2 Rxh4+) (41. Qa8+ $142 Kg7 42. Rxd4 Qxd4 43. Qa5) 41... Qxd4 $18 {[%emt 0:30:03]} 42. Qb3 {[%emt 0:00:32]} ({White should try} 42. Qa8+ $16 Kg7 43. Qb8 Qd1+ 44. Kh2) 42... Qxh4 $2 {[%emt 0:00:03][%mdl 8192]} (42... Qa1+ $11 43. Kh2 Qd4) 43. b5 {[%emt 0:00:07] White is clearly winning.} Qe4 {[%emt 0:00:09]} 44. b6 {[%emt 0:00:49] Strongly threatening b7.} Qb7 {[%emt 0:03:32]} 45. Qb5 {[%emt 0:00:19] Qc5 is the strong threat.} f6 {[%emt 0:00:38] Weighted Error Value: White=0.24 (precise) /Black=0.26 (precise)} 1-0

[Event "Lliga Catalana DH 2023"]
[Site "Catalonia"]
[Date "2023.02.04"]
[Round "3.1"]
[White "Alsina Leal, Daniel"]
[Black "Edouard, Romain"]
[Result "1/2-1/2"]
[ECO "B60"]
[WhiteElo "2520"]
[BlackElo "2532"]
[Annotator "TA"]
[PlyCount "63"]
[EventDate "2023.01.24"]
[EventType "team-tourn"]
[EventCountry "ESP"]
[SourceTitle "playchess.com"]
[Source "ChessBase"]
[SourceQuality "1"]
[TimeControl "40/5400+30:1800+30"]

{[%evp 13,63,51,40,40,35,41,38,34,42,42,61,45,75,78,84,100,86,54,65,53,53,48,50,45,43,50,65,78,43,67,71,18,129,0,0,0,0,0,0,0,0,0,14,0,72,72,66,0,53,53,56,70]} 1. e4 c5 2. Nf3 d6 3. d4 cxd4 4. Nxd4 Nf6 5. Nc3 Nc6 6. Bg5 g6 7. Bxf6 exf6 8. Bb5 {B60: Sicilian: Richter-Rauzer: Unusual Black 6th moves and 6...Bd7 without 7 Qd2.} Bd7 9. Qd2 Bg7 10. O-O-O O-O $1 11. Nb3 a6 12. Be2 {[#]} Qb6 $146 ({Predecessor:} 12... f5 13. Qxd6 Qg5+ 14. Kb1 Rad8 15. h4 Qe7 16. Qxe7 Nxe7 17. Nd5 Nc6 18. Bf3 Rfe8 19. exf5 Bxf5 {½-½ Naiditsch,A (2702)-Najer,E (2640) EU-ch 13th Plovdiv 2012 (8)}) 13. Qxd6 Be6 14. Qc5 {White is more active.} Qc7 15. Nd5 Qe5 16. Nb6 {[#] Black must now prevent Qxe5. Excellent horsemanship.} Qf4+ 17. Nd2 (17. Qe3 {simplifies} Qxe3+ 18. fxe3 Rae8 19. Bf3) 17... Rad8 18. g3 $1 Qb8 19. Bc4 Rfe8 {[%cal Bf8e8,Be8e6,Be6d6][%mdl 32]} 20. Bxe6 Rxe6 21. Nd5 f5 22. f3 ({White should try} 22. exf5 $16 Bd4 23. Qc4) 22... b5 {[#]} (22... Ne5 $11) 23. Nf4 (23. Qxc6 $1 $16 Rxc6 24. Ne7+ Kf8 25. Nxc6) 23... Red6 $11 {And now ...Nd4 would win.} 24. Nb3 Nd4 25. Nxd4 Bxd4 26. Qa3 fxe4 27. fxe4 R6d7 28. Qf3 (28. Qxa6 Be3+) 28... Bg7 (28... b4 $11 {keeps the balance.}) 29. Rxd7 $16 Rxd7 30. Rd1 (30. Nd3 $14) 30... Re7 ({Better is} 30... Rxd1+ $11 31. Qxd1 Bh6) 31. Nd5 $14 Re6 32. Rf1 {Weighted Error Value: White=0.14 (very precise) /Black=0.19 (very precise)} 1/2-1/2

[Event "Lliga Catalana DH 2023"]
[Site "Catalonia"]
[Date "2023.02.04"]
[Round "3.2"]
[White "Peralta, Fernando"]
[Black "Cuartas Medina, Jaime Alexander"]
[Result "0-1"]
[ECO "E43"]
[WhiteElo "2596"]
[BlackElo "2507"]
[Annotator "TA"]
[PlyCount "100"]
[EventDate "2023.01.24"]
[EventType "team-tourn"]
[EventCountry "ESP"]
[SourceTitle "playchess.com"]
[Source "ChessBase"]
[SourceQuality "1"]
[TimeControl "40/5400+30:1800+30"]

{[%evp 18,100,4,13,26,16,10,33,21,4,34,31,35,30,46,36,34,29,50,0,0,0,0,-4,0,-10,0,-16,-16,-16,-17,-15,-15,-18,-14,-25,-29,-28,-22,-27,-27,-171,-167,-172,-158,-156,-147,-160,-154,-167,-162,-167,-166,-167,-161,-164,-122,-135,-134,-136,-137,-196,-208,-204,-200,-280,-279,-276,-269,-566,-559,-483,-464,-722,-683,-435,-433,-1115,-1028,-1215,-1033,-6079,-5469,-2154,-1458]} 1. d4 Nf6 2. c4 e6 3. Nc3 Bb4 4. e3 b6 5. Bd3 Bb7 6. Nf3 c5 7. O-O O-O 8. Bd2 d6 9. a3 {9.Qe2 is not played anymore.} Bxc3 10. Bxc3 Nbd7 {E43: Nimzo-Indian: Rubinstein: 4...b6.} 11. Nd2 cxd4 12. exd4 d5 {White is slightly better.} 13. b3 {[#]} Qb8 $146 (13... dxc4 $5 14. bxc4 Ne5 $11) ({Predecessor:} 13... dxc4 14. bxc4 Qc7 15. Re1 Rfd8 16. Rc1 Qd6 17. a4 Bc6 18. a5 bxa5 19. Bxa5 Rdc8 {1-0 Vyzharov,I (2163)-Bernal Varela,N (2033) IECG QA.2005.0.00066}) 14. Re1 Re8 15. Bb2 e5 16. dxe5 Nxe5 17. Bf1 {This pair of bishops is nice.} Qc7 {...Neg4 would be deadly.} 18. Bxe5 (18. cxd5 $14 Neg4 19. Nf3) 18... Rxe5 $11 19. Rxe5 Qxe5 20. Nf3 Qe7 21. Qe1 Qxe1 22. Rxe1 dxc4 23. Bxc4 Bxf3 24. gxf3 {[%mdl 4096] Endgame Threatens to win with Re7. KRB-KRN} Kf8 {Against Re7} 25. Rd1 Rc8 26. Kg2 Rc7 27. f4 Ne4 28. Kf3 Nc5 {[%cal Oc5b3]} 29. f5 {[#]} (29. Ke2 $11 {and White is okay.}) 29... Nxb3 $1 $19 {[%mdl 576] Decoy} 30. Bb5 Ke7 31. Kf4 Nc5 32. Re1+ Kf6 33. Rd1 g5+ 34. fxg6 hxg6 35. Ke3 Re7+ 36. Kf3 Ne4 37. Bc6 {[#]} Ng5+ 38. Kg2 Rc7 39. Ba8 (39. h4 $17 Ne6 40. Bb5) 39... Ne6 40. Re1 Rc3 41. Re3 Rxe3 42. fxe3 {KB-KN} Ke5 43. h4 $2 (43. Kf3) 43... Ng7 {Black is clearly winning.} 44. e4 Kf4 {aiming for ...Kg4.} 45. Kh3 (45. Bd5 $142 Ne6 46. Kh3) 45... Ne8 46. Bd5 Nd6 47. a4 (47. Kg2 $142) 47... f6 (47... Nxe4 $2 {perishes.} 48. Bxf7 g5 49. Bh5 $19) 48. Bc6 Nxe4 {And now ...f5 would win.} 49. Be8 g5 50. h5 Nf2+ {Weighted Error Value: White=0.61/Black=0.03 (flawless)} 0-1

[Event "Lliga Catalana DH 2023"]
[Site "Catalonia"]
[Date "2023.02.04"]
[Round "3.2"]
[White "Barbero Sendic, Alejandro"]
[Black "Prie, Eric"]
[Result "0-1"]
[ECO "D00"]
[WhiteElo "2351"]
[BlackElo "2372"]
[Annotator "TA"]
[PlyCount "80"]
[EventDate "2023.01.24"]
[EventType "team-tourn"]
[EventCountry "ESP"]
[SourceTitle "playchess.com"]
[Source "ChessBase"]
[SourceQuality "1"]
[TimeControl "40/5400+30:1800+30"]

{[%evp 9,80,0,0,0,0,0,0,0,0,0,0,0,-4,-16,-16,-10,-11,-13,-14,-8,-4,-14,0,-16,-23,-28,-24,-34,-11,-20,-10,-28,-30,-41,0,-1,0,-3,0,0,0,-3,-3,-3,-3,-5,-8,-150,-151,-151,-151,-151,-151,-151,-151,-151,-151,-154,-151,-342,-342,-342,-70,-69,-69,-6596,-6307,-6087,-5302,-29975,-29976,-29980,-6479]} 1. d4 {[%emt 0:00:01]} d5 {[%emt 0:02:43]} 2. Nc3 {[%emt 0:00:29]} Nf6 {[%emt 0:00:11]} 3. Bf4 {[%emt 0:00:15]} c5 {[%emt 0:00:19]} 4. e4 {[%emt 0:01:44]} Nxe4 {[%emt 0:02:16]} 5. Nxe4 {[%emt 0:00:14]} dxe4 {[%emt 0:00:10]} 6. dxc5 {[%emt 0:00:20] D00: 1 d4 d5: Unusual lines.} Qa5+ {[%emt 0:00:28]} 7. c3 {[%emt 0:00:30]} Qxc5 {[%emt 0:00:11]} 8. Qa4+ {[%emt 0:00:19] The position is equal.} Nc6 {[%emt 0:00:11]} 9. Qxe4 {[%emt 0:00:21]} g6 {[%emt 0:00:09]} 10. Nf3 {[%emt 0:04:30]} Bg7 {[%emt 0:00:12][%cal Og7c3] [#] White must now prevent ...Bxc3+!} 11. Qc4 {[%emt 0:04:12] [#]} Qa5 $146 {[%emt 0:01:57]} ({Predecessor:} 11... Qb6 12. Qb5 Qxb5 13. Bxb5 Bd7 14. O-O-O a6 15. Bc4 Bg4 16. Bd5 O-O 17. h3 Bc8 {½-½ Brixel,C (165)-White,S (203) Kidlington op 43rd 2020 (4)}) 12. Bd3 {[%emt 0:04:09]} Be6 {[%emt 0:05:23]} 13. Qb5 {[%emt 0:00:30]} Qxb5 {[%emt 0:00:17]} 14. Bxb5 {[%emt 0:00:09]} Bd5 {[%emt 0:00:14]} 15. O-O {[%emt 0:02:57]} a6 {[%emt 0:17:01]} 16. Ba4 {[%emt 0:01:37]} b5 {[%emt 0:06:57]} 17. Bc2 {[%emt 0:09:03]} O-O {[%emt 0:03:32]} 18. Rfd1 {[%emt 0:01:23]} Rfd8 {[%emt 0:00:41]} 19. Bc7 {[%emt 0:11:39]} Rd7 {[%emt 0:00:24]} 20. Bb6 {[%emt 0:06:24]} Rb8 {[%emt 0:03:07]} 21. Bc5 {[%emt 0:04:32]} Rbd8 {[%emt 0:07:34]} 22. a4 {[%emt 0:02:26]} h6 {[%emt 0:17:36]} 23. Bb6 {[%emt 0:11:50]} Bxf3 {[%emt 0:07:53]} 24. gxf3 {[%emt 0:01:42]} Rxd1+ {[%emt 0:00:10]} 25. Rxd1 {[%emt 0:03:18]} Rxd1+ {[%emt 0:04:41]} 26. Bxd1 $11 {[%emt 0:00:07][%mdl 4096] Endgame KBB-KBN} Ne5 {[%emt 0:04:21]} 27. Be2 {[%emt 0:09:36]} Nc4 {[%emt 0:00:30]} 28. Bxc4 {[%emt 0:01:20]} (28. Bc5 $11) 28... bxc4 {[%emt 0:00:06] KB-KB} 29. f4 {[%emt 0:01:20]} f5 {[%emt 0:01:10]} 30. Kg2 {[%emt 0:02:38]} Kf7 {[%emt 0:00:33]} 31. Kf3 {[%emt 0:00:59]} Ke6 {[%emt 0:00:20]} 32. h3 {[%emt 0:04:10]} Kd5 {[%emt 0:00:50]} 33. Be3 {[%emt 0:02:31]} Bf6 {[%emt 0:00:29] aiming for ...e6.} 34. Ba7 $2 {[%emt 0:01:19] [#]} (34. Bb6 $17 {was worth a try.}) 34... g5 $19 {[%emt 0:01:35]} 35. Bb6 {[%emt 0:02:08]} gxf4 $2 {[%emt 0:00:44]} ({Black should play} 35... e6 $19 {Threatens to win with ...gxf4.} 36. Be3 gxf4) 36. Kxf4 $15 {[%emt 0:00:13]} e6 {[%emt 0:00:09]} 37. Be3 $2 {[%emt 0:01:14][%mdl 8192]} (37. Ke3 $15) 37... Bg5+ $19 {[%emt 0:00:29]} 38. Kf3 {[%emt 0:00:02]} Bxe3 {[%emt 0:04:45]} 39. Kxe3 {[%emt 0:03:57]} e5 {[%emt 0:00:08]} 40. Kd2 {[%emt 0:02:25]} e4 {[%emt 0:00:29] Weighted Error Value: White=0.53/Black=0.15 (very precise)} (40... f4 $142 41. Kd1 e4 42. Ke2 Ke5 43. f3 exf3+ 44. Kf2 Ke4 45. h4 h5 46. a5 Kd5 47. Kxf3 Ke5 48. Kf2 Ke4 49. Ke2 f3+ 50. Kd2 Kf4 51. b4 cxb3 52. Kd3 f2 53. c4 f1=Q+ 54. Kc3 Qb1 55. Kd4 b2 56. Kc3 Qa1 57. c5 b1=Q+ 58. Kc4 Qe4+ 59. Kb3 Qea4#) 0-1

[Event "Lliga Catalana DH 2023"]
[Site "Catalonia"]
[Date "2023.02.04"]
[Round "3.3"]
[White "Asis Gargatagli, Hipolito"]
[Black "Gonzalez Garcia, Jose"]
[Result "1/2-1/2"]
[ECO "C11"]
[WhiteElo "2501"]
[BlackElo "2450"]
[Annotator "TA"]
[PlyCount "48"]
[EventDate "2023.01.24"]
[EventType "team-tourn"]
[EventCountry "ESP"]
[SourceTitle "playchess.com"]
[Source "ChessBase"]
[SourceQuality "1"]
[TimeControl "40/5400+30:1800+30"]

{[%evp 16,48,8,7,14,14,25,30,25,23,28,26,28,24,33,32,37,22,80,45,125,132,161,167,163,158,153,150,185,156,179,135,145,88,84]} 1. e4 e6 2. d4 d5 3. Nc3 Nf6 4. e5 Nfd7 5. f4 c5 6. Nf3 Nc6 7. Be3 a6 8. a3 cxd4 9. Nxd4 Bc5 {C11: French: Classical System: 4 e5 and 4 Bg5 dxe4.} 10. Qd2 g5 11. Nf3 ({Much worse is} 11. fxg5 Nxd4 12. Bxd4 Bxd4 13. Qxd4 Qxg5 $15) 11... d4 {[%mdl 64] [#] Deflection. White has an edge.} 12. Bxd4 Nxd4 13. Nxd4 gxf4 $1 {[%mdl 64] Remove Defender} 14. Qxf4 {Black must now prevent 0-0-0.} Nxe5 $1 15. O-O-O Ng6 {[#]} 16. Qe4 $146 {[%cal Od4e6][%mdl 2048] And now Nxe6! would win. White has the initiative.} ({Predecessor:} 16. Qd2 e5 17. Nb3 Qxd2+ 18. Kxd2 Ba7 19. Nd5 O-O 20. Kc1 Be6 21. Na5 Rad8 22. Bc4 {0-1 Paravyan,D (2617)-Erigaisi,A (2675) Chess.com Rapid Wk12 Swiss 2022 (9)}) 16... Qf6 (16... Qh4 $11) 17. Nb3 Ba7 (17... Be7 $14) 18. Bxa6 $16 O-O 19. Bb5 Bb8 {[%cal Ba7b8,Bb8e5,Be5f6][%mdl 32] Black is weak on the light squares} 20. Kb1 Be5 21. Rd3 {White is much more active.} Kh8 22. h4 {Threatens to win with h5.} Qg7 23. g3 f5 {[#]} 24. Qe1 ({Better is} 24. Qb4 $1) 24... Bf6 {Weighted Error Value: White=0.14 (very precise) /Black=0.19 (very precise)} 1/2-1/2